Cogmind - Beta 15 @@@ ROGUE MODE // 2025.09.27 @ 17:35:47 Player: beans Result: Destroyed by G-34 Mercenary with Small Laser Performance ------------- Evolutions (0) 0 Regions Visited (2) 400 Robots Destroyed (5) 25 Value Destroyed (82) 82 Prototype IDs (3) 60 Alien Tech Used (0) 0 Bonus (0) 0 TOTAL SCORE: 567 Bonus ------- None Cogmind --------- Core Integrity 0/250 Matter 199/300 Energy 42/140 System Corruption 1% Temperature Warm (129) Movement Core (150) Ox2 Location -10/Mines Parts ------- > --- POWER (1) -------- Light Deuterium Engine > --- PROPULSION (2) --- (None) > --- UTILITY (2) ------ Advanced Visual Processing Unit > --- WEAPON (2) ------- Pulse Rifle > --- INVENTORY (5) ---- Light Treads Experimental Sensor Array Shock Bomb Launcher Peak State ------------ > --- POWER ------------ (None) > --- PROPULSION ------- Flight Unit > --- UTILITY ---------- Advanced Visual Processing Unit Experimental Sensor Array > --- WEAPON ----------- Shock Bomb Launcher > --- INVENTORY -------- Light Deuterium Engine Light Treads Pulse Rifle [Rating: 16] Favorites ----------- Power Light Deuterium Engine Engine Light Deuterium Engine Propulsion Flight Unit Treads Light Treads Flight Unit Flight Unit Utility Experimental Sensor Array Device Experimental Sensor Array Processor Advanced Visual Processing Unit Weapon Medium Laser Energy Gun Medium Laser Launcher Shock Bomb Launcher Build | -11 -10 -10 ------- Run | Yrd Mat Min Slots Evolved . | . . . Power . | . . . Propulsion . | . . . Utility . | . . . Weapon . | . . . Parts Attached 9 | 3 1 5 Power 1 | . . 1 Engine 1 | . . 1 Core . | . . . Reactor . | . . . Propulsion 3 | 2 1 . Treads 2 | 2 . . Leg . | . . . Wheel . | . . . Hover . | . . . Flight 1 | . 1 . Utility 2 | . . 2 Device 1 | . . 1 Storage . | . . . Processor 1 | . . 1 Hackware . | . . . Protection . | . . . Artifact . | . . . Weapon 3 | 1 . 2 Energy Gun 2 | 1 . 1 Energy Cannon . | . . . Ballistic Gun . | . . . Ballistic Cannon . | . . . Launcher 1 | . . 1 Special Weapon . | . . . Impact Weapon . | . . . Slashing Weapon . | . . . Piercing Weapon . | . . . Special Melee Weapon . | . . . Unidentified Prototypes 1 | . . 1 Parts Lost 2 | . . 2 Power . | . . . Propulsion 1 | . . 1 Utility . | . . . Weapon 1 | . . 1 Highest Loss Streak 2 | . . 2 To Critical Strikes . | . . . Average Backups 2 | . . 3 Power . | . . . Propulsion . | . . 1 Utility . | . . . Weapon . | . . 1 Tool/Special . | . . . Unused Backups . | . . . Power . | . . . Propulsion . | . . . Utility . | . . . Weapon . | . . . Tool/Special . | . . . Average Slot Usage (%) 43 | . 35 48 Treads 4 | . 14 . Flight 10 | . 7 12 Device 7 | . . 11 Processor 6 | . . 9 Energy Gun 13 | . 14 12 Peak Build Rating 16 | 3 3 16 Average Rating 8 | 2 2 12 On Entrance 1 | . 3 2 Naked Turns 4 | . 4 . Heaviest Build 3 | 2 2 3 Greatest Support 40 | 40 40 4 Greatest Overweight (x) . | . . . Average Overweight (x) . | . . . Largest Inventory Capacity 5 | 5 5 5 Average Capacity 5 | 5 5 5 Most Carried 5 | 3 3 5 Average Carried 2 | . . 3 Final Capacity 5 | 5 5 5 Final Carried 3 | . 1 3 Class Distribution -------------------- 100% | Mutant Dominant Class ---------------- Mutant | -10/Materials Mutant | -10/Mines Resources | -11 -10 -10 ----------- Run | Yrd Mat Min Matter Collected 214 | 150 . 64 Remotely . | . . . Salvage Created 108 | . . 108 Parts 11 | . . 11 Haulers Intercepted . | . . . Recyclers Shooed . | . . . Parts Field Recycled . | . . . Retrieved Matter . | . . . Parts Self-Destructed . | . . . Prevented . | . . . Kills | -11 -10 -10 ------- Run | Yrd Mat Min Combat Hostiles Destroyed 4 | . . 4 Guns 4 | . . 4 Classes Destroyed 3 | . . 3 Builder 1 | . . 1 Swarmer 3 | . . 3 Grunt 1 | . . 1 Best Kill Streak 5 | . . 5 Combat Bots Only 4 | . . 4 Max Kills in Single Turn 1 | . . 1 Gunslinging . | . . . Exploded . | . . . Melee . | . . . Uniques/NPCs Destroyed . | . . . Combat | -11 -10 -10 -------- Run | Yrd Mat Min Hostile Shots Fired 52 | . . 52 Missed 17 | . . 17 Hits 35 | . . 35 Projectile 35 | . . 35 Damage Taken 382 | . . 382 Core 257 | . . 257 Absorbed by Shields . | . . . Core Remaining (%) 100 | 100 . . Volleys Fired 19 | 4 4 11 Largest 1 | 1 1 1 Hottest 63 | 50 50 63 Shots Fired 19 | 4 4 11 Gun 18 | 4 4 10 Cannon . | . . . Launcher 1 | . . 1 Special . | . . . Kinetic . | . . . Thermal 18 | 4 4 10 Explosive . | . . . Electromagnetic 1 | . . 1 Robot Hit Streak 2 | . . 2 Robot Miss Streak 3 | . 2 3 Penetration Max . | . . . Secondary Targets . | . . . Shots Hit Robots 6 | . . 6 Core Hits 6 | . . 6 Critical Kills . | . . . Critical Parts Destroyed . | . . . Critical Strikes . | . . . Melee Attacks . | . . . Impact . | . . . Slashing . | . . . Piercing . | . . . Sneak Attacks . | . . . Combat Hostiles . | . . . Follow-up Attacks . | . . . Damage Inflicted 130 | . . 130 Guns 93 | . . 93 Cannons . | . . . Explosions 37 | . . 37 Melee . | . . . Ramming . | . . . Kinetic . | . . . Thermal 93 | . . 93 Explosive . | . . . Electromagnetic 37 | . . 37 Impact . | . . . Slashing . | . . . Piercing . | . . . Highest Corruption 1 | . . 1 Average Corruption 1 | . . 1 Corruption Purged . | . . . Corruption Blocked . | . . . Overload Shots . | . . . Overflow Damage 1 | . . 1 Projectiles . | . . . Explosions 1 | . . 1 Melee . | . . . Knockbacks . | . . . Impact . | . . . Kinetic . | . . . Secondary . | . . . Self-Inflicted Damage 6 | . . 6 Shots 1 | . . 1 Rammed . | . . . Targets Rammed . | . . . Kicked . | . . . Crushed . | . . . Highest Temperature 123 | . 4 123 Average Temperature 32 | . 2 41 Received Heat Transfer 120 | . . 120 Siege Activations . | . . . Martial Activations . | . . . Shielding Activations . | . . . Robots Disrupted . | . . . Combat Hostiles . | . . . Robots Corrupted . | . . . Combat Hostiles . | . . . Parts Fried . | . . . Impact Corruptions . | . . . Robots Melted . | . . . Combat Hostiles . | . . . Parts Melted 1 | . . 1 Heat Transferred 222 | . . 222 Parts Sabotaged . | . . . Parts Stolen . | . . . Parts Stripped . | . . . Power Chain Reactions . | . . . Alert | -11 -10 -10 ------- Run | Yrd Mat Min Maximum Alert Level . | . . . Low Security (%) 100 | 100 100 100 Level 1 . | . . . Level 2 . | . . . Level 3 . | . . . Level 4 . | . . . Level 5 . | . . . High Security . | . . . Max Security . | . . . Peak Influence 45 | . 5 45 Initial 1 | . . 1 Average 2 | . . 4 Influence Increases 141 | . 6 135 Destroy 0b10 Robot/C 80 | . . 80 Destroy 0b10 Robot/NC 5 | . . 5 Destroy Leader 20 | . . 20 Successful Hack 5 | . 5 . Destroy Structure 1 | . 1 . Lose Combat Pursuer 30 | . . 30 Influence Decreases 76 | . 1 75 Entered New Map 4 | . . 4 Time Decay 52 | . 1 51 Lost Part 20 | . . 20 Squads Dispatched 3 | . 2 1 Investigation 2 | . 1 1 Extermination . | . . . Reinforcement 1 | . 1 . Assault . | . . . Garrison . | . . . Intercept . | . . . Searches Triggered . | . . . Construction Impeded . | . . . Haulers Reinforced . | . . . Active Scanning Responses . | . . . Cargo Convoy Interrupts . | . . . Stealth | -11 -10 -10 --------- Run | Yrd Mat Min Distress Signals . | . . . Communications Jammed . | . . . Distress Signals . | . . . Times Spotted 10 | . 2 8 Peak Tracking Total 5 | . 1 5 Tactical Retreats 1 | . . 1 Traps | -11 -10 -10 ------- Run | Yrd Mat Min Traps Triggered . | . . . Indirectly . | . . . Trap Hack Attempts . | . . . Triggered . | . . . Disarmed . | . . . Reprogrammed . | . . . Reused . | . . . Traps Extracted . | . . . Installed . | . . . Triggered . | . . . Machines | -11 -10 -10 ---------- Run | Yrd Mat Min Machines Disabled . | . . . Max in Single Turn . | . . . Machines Repaired . | . . . Machines Dismantled . | . . . Machines Sabotaged . | . . . Overloaded Fab Kills . | . . . Hacking | -11 -10 -10 --------- Run | Yrd Mat Min Machines Accessed 2 | . 1 1 Terminals 1 | . 1 . Fabricators . | . . . Repair Stations . | . . . Recycling Units . | . . . Scanalyzers . | . . . Garrison Access . | . . . Total Hacks 4 | . 3 1 Successful 4 | . 3 1 Failed . | . . . Catastrophic . | . . . Database Lockouts . | . . . Manual . | . . . Terminals 3 | . 3 . Fabricators . | . . . Repair Stations . | . . . Recycling Units . | . . . Scanalyzers . | . . . Garrison Access . | . . . Terminal Hacks 4 | . 3 1 Record 1 | . 1 . Prototype ID Bank 1 | . 1 . Open Door 1 | . . 1 Alert Level 1 | . 1 . Fabricator Hacks . | . . . Repair Station Hacks . | . . . Recycling Unit Hacks . | . . . Scanalyzer . | . . . Garrison Access Hacks . | . . . Unauthorized Hacks . | . . . Terminals . | . . . Fabricators . | . . . Repair Stations . | . . . Recycling Units . | . . . Scanalyzers . | . . . Garrison Access . | . . . Data Cores Recovered . | . . . Used . | . . . Hacking Detections 1 | . 1 . Full Trace Events 1 | . 1 . Feedback Events . | . . . Feedback Blocked . | . . . Robot Schematics Acquired . | . . . Robots Built . | . . . Authchips . | . . . Time . | . . . Total Robot Build Rating . | . . . Part Schematics Acquired . | . . . Parts Built . | . . . Authchips . | . . . Time . | . . . Total Part Build Rating . | . . . Parts Repaired . | . . . Time . | . . . Parts Recycled . | . . . Recycled Matter . | . . . Retrieved Matter . | . . . Retrieved Components . | . . . Parts Scanalyzed . | . . . Part Schematics Acquired . | . . . Parts Damaged . | . . . Bothacking | -11 -10 -10 ------------ Run | Yrd Mat Min Used RIF Installer . | . . . Robots Hacked . | . . . Non-combat . | . . . Combat . | . . . Robot Hacks Applied . | . . . Relay Couplers Released . | . . . Fabnet Peak Effective % . | . . . Robots Rewired . | . . . Allies Hacked . | . . . Hacks Repelled . | . . . Allies | -11 -10 -10 -------- Run | Yrd Mat Min Total Allies . | . . . Largest Group . | . . . Highest-Rated Group . | . . . Highest-Rated Ally . | . . . Total Orders . | . . . Ally Attacks . | . . . Total Damage . | . . . Kills . | . . . Allies Corrupted . | . . . Allies Melted . | . . . Intel | -11 -10 -10 ------- Run | Yrd Mat Min Active Infowar (turns) 233 | . . 233 Optics 188 | . . 188 Sensors 218 | . . 218 Robot Analysis Total . | . . . Derelict Logs Recovered 1 | . . 1 Drone Launches . | . . . Drone Recoveries . | . . . Exploration | -11 -10 -10 ------------- Run | Yrd Mat Min Turns Passed 445 | 50 135 260 Spaces Moved 432 | 33 130 269 Core 21 | 14 2 5 Treads 53 | 19 34 . Legs . | . . . Wheels . | . . . Hover . | . . . Flight 358 | . 94 264 Fastest Speed 40 | 50 40 40 Average Speed 55 | 113 71 40 Slowest Speed 160 | 160 160 50 Overloaded Moves . | . . . Propulsion Burnouts . | . . . Robots Hopped 7 | . . 7 Potential Cave-ins . | . . . Cave-ins Triggered . | . . . Exploration Rate (%) 23 | 3 28 38 Regions Visited 2 Branch Regions 1 Pre-discovered Areas . | . . . Known Exits Taken . | . . . Unknown Exits Taken 2 | 1 1 . Scrap Searched 1 | . . 1 Spaces Dug . | . . . Terrain Destroyed . | . . . Melee . | . . . Projectile . | . . . AOE . | . . . Terrain Rammed . | . . . Walls Destroyed . | . . . Machines Disabled . | . . . Actions | -11 -10 -10 --------- Run | Yrd Mat Min Total 614 | 42 167 405 Wait 145 | . 25 120 Move 418 | 32 129 257 Hop 5 | . . 5 Pick Up 12 | 3 4 5 Fast Attach . | . . . Attach 11 | 3 3 5 Detach 2 | . . 2 Swap 1 | . 1 . Drop 1 | . 1 . Fire 19 | 4 4 11 Melee . | . . . Ram . | . . . Kick . | . . . Crush . | . . . Escape Stasis . | . . . Rewire . | . . . Trap . | . . . Miscellaneous . | . . . Route ------- -11/Scrapyard -10/Materials -10/Mines (discovered 2 exits: [*Mat x2]) History --------- Turn | Location | Event 15 | -11/Scrapyard | Discovered new exit (range 15) 51 | -11/Scrapyard | Entered Materials 63 | -10/Materials | Released all parts (3) 170 | -10/Materials | Discovered new exit (range 12) 186 | -10/Materials | Entered Mines 196 | -10/Mines | Found a damaged Exp. Sensor Array with a note attached 197 | -10/Mines | Found Prototype Device 205 | -10/Mines | Discovered new exit (range 5) 213 | -10/Mines | Identified Exp. Sensor Array 219 | -10/Mines | Discovered new exit (range 12) 220 | -10/Mines | Met a Derelict bent on vengeance 236 | -10/Mines | Learned Materials garrison access intel 246 | -10/Mines | Met a Derelict shopkeep closing up shop 317 | -10/Mines | Build established: Mutant 432 | -10/Mines | Core integrity fell below 50% 439 | -10/Mines | Core integrity fell below 20% 446 | -10/Mines | Destroyed by G-34 Mercenary with Small Laser Last Messages --------------- U-05 Engineer lays Concrete. Acquired Lgt. Deuterium Engine. U-05 Engineer lays Concrete. T-07 Excavator is excavating. U-05 Engineer builds a Wall. G-34 Mercenary destroyed. K-01 Serf collects debris. 86-W3X(g): "VENGEANCE!" K-01 Serf collects debris. 86-W3X(g): "UNAWARE KILLED MY BEST FRIEND! VENGEANCE!" 86-W3X(g): "TASTE MY VENGEANCE!" Flight Unit melted. S-10 Pest destroyed. Med. Laser destroyed. Destroyed Flight Unit. U-05 Engineer destroyed. Flight Unit destroyed. S-10 Pest destroyed. G-47 Trooper destroyed. Map ----- +----------------------------------------------------+ | ???????# = | | ???????# % | | ???????## ############## | | ????????# ##??????????### | | ????????## ####?????????# | | ?????????## #?????????? | | ??????????## #?????????# | | ???????????# #### #?????????# | | ???????????# #???##????????# | | ???????????# #????????????# | | ???????????# #???????????# | | ???????????# #???????????# | | ???????????# #???????????## | | ???????????# #????????????### | | ???????????# #??????????????? | | ???????????# #??????????????? | | ???????????# #??????????????? | | ????###????# #??????????????? | | ???## ##???# #??????????????? | | ???# #???# #??????????????? | | ???## #???# ####???????????? | | ????# [##??# #???????????? | | ???## =%#??# ## #???????????? | | ???# ==|####!## #???????????? | | ???# =%!%*g%*## #???????????? | | ???#@ *######## $??????????? | | ??# #??????#####?????????? | | ??# #???????????????????? | | ??# #??????????????????? | | ??## #??????????????????? | | ???### ##??????????????????? | | ??????###???????????????????? | | ????????????????????????????? | | | | | | | | | | | | | | | | | | | | | | | | | | | | | | | | | | | +----------------------------------------------------+ Best States ------------- Heat Dissipation 25 Energy Generation 14 Energy Capacity 140 Matter Stores 244 Matter Capacity 300 Sight Range 20 Robot Scan Range 20 Terrain Scan Density 10 Evasion (%) 62 Recoil Reduction 2 Item Schematics ----------------- None Robot Schematics ------------------ None Fabricated ------------ Nothing Repaired ---------- Nothing Alien Tech Used ----------------- None Achievements -------------- None Challenges ------------ None Game ------ Seed DataScanDeconstructor Manual? 0 Play Time 00:08:47 Cumulative 161.8 hours Start 2025.09.27 @ 12:29:17 End 2025.09.27 @ 17:35:47 Sessions 2 Manual Loads 0 Difficulty Rogue Special Mode None Game No. 522 Rogue 521 Adventurer 1 Explorer 0 Win Type - Total 0 Types 0/0/0/0/0/0/0/0/0/0 Lore% 57 Gallery% 54 Achievement% 43 Wizard Run 0 Options --------- Layout 1 ASCII 0 Keyboard 0 Movement Mouse Keybinds 0 Fullscreen 2 Font 24/Smallcaps Map View 50x35 Zoom Use 0% Tactical HUD 0 Map Filters NONE Filters NONE Steam 1 RUN: 08547c77-7da9-48b4-9688-0a912359b161